fUSD/lending_fUSD_20251213
["ID","MTS","AMOUNT","RATE_DAILY","PERIOD"]
[398402295,1765615838243,-648.7,0.0001726,2]
[398402296,1765615838253,-150.32,0.0001726,2]
[398402297,1765615838263,-356.32,0.0001726,2]
[398402298,1765615838272,-304.06693998,0.00017404,2]
[398402299,1765615838281,-281.3609,0.0001744,2]
[398402300,1765615838291,-160.99670668,0.00017453,2]
[398402301,1765615838301,-3295.84407793,0.00017454,2]
[398402302,1765615838310,-238.77494716,0.00017455,2]
[398402303,1765615838320,-515.05,0.00017468,2]
[398402304,1765615838329,-3295.84407791,0.00017504,2]
[398402305,1765615838339,-238.77494711,0.00017504,2]
[398402306,1765615838348,-1000.0,0.00017521,2]
[398402307,1765615838358,-1000.0,0.00017521,2]
[398402308,1765615838367,-1000.0,0.00017521,2]
[398402309,1765615838380,-1000.0,0.00017521,2]
[398402310,1765615838389,-1000.0,0.00017521,2]
[398402311,1765615838399,-627.91595404,0.00017533,2]
[398402312,1765615838409,-648.7,0.00017534,2]
[398402313,1765615838421,-150.0,0.00017534,2]
[398402314,1765615838430,-150.0,0.00017534,2]
[398402315,1765615838446,-150.0,0.00017534,2]
[398402316,1765615838457,-150.0,0.00017534,2]
[398402317,1765615838468,-150.0,0.00017534,2]
[398402318,1765615838477,-150.0,0.00017534,2]
[398402319,1765615838487,-150.0,0.00017534,2]
[398402320,1765615838497,-150.0,0.00017534,2]
[398402321,1765615838506,-150.0,0.00017534,2]
[398402322,1765615838516,-150.0,0.00017534,2]
[398402323,1765615838526,-150.0,0.00017534,2]
[398402324,1765615838536,-760000.0,0.0001754,2]
[398402325,1765615838546,-3295.84407791,0.00017553,2]
[398402326,1765615838556,-238.77494711,0.00017554,2]
[398402327,1765615838566,-3295.84407791,0.00017603,2]
[398402328,1765615838576,-238.77494711,0.00017603,2]
[398402329,1765615838586,-1104.8208315,0.0001764,2]
[398402331,1765615838596,-1040.05394818,0.0001764,2]
[398402333,1765615838606,-1111.46445407,0.0001764,2]
[398402335,1765615838616,-1092.74840756,0.0001764,2]
[398402337,1765615838625,-1101.42266015,0.0001764,2]
[398402339,1765615838635,-1020.00551114,0.0001764,2]
[398402341,1765615838644,-1118.78807949,0.0001764,2]
[398402343,1765615838655,-1144.93367517,0.0001764,2]
[398402344,1765615838665,-1122.65720634,0.0001764,2]
[398402345,1765615838675,-1108.1713463,0.0001764,2]
[398402346,1765615838684,-1102.06777803,0.0001764,2]
[398402347,1765615838693,-1040.67483476,0.0001764,2]
[398402348,1765615838702,-1049.93647763,0.0001764,2]
[398402349,1765615838712,-1006.5807197,0.0001764,2]
[398402350,1765615838722,-1147.90381572,0.0001764,2]
[398402351,1765615838731,-1047.41446316,0.0001764,2]
[398402352,1765615838740,-1145.44716991,0.0001764,2]
[398402353,1765615838750,-1078.76889759,0.0001764,2]
[398402354,1765615838759,-1102.52492332,0.0001764,2]
[398402355,1765615838769,-1021.66091244,0.0001764,2]
[398402356,1765615838779,-1146.80651944,0.0001764,2]
[398402357,1765615838788,-1114.33797408,0.0001764,2]
[398402358,1765615838798,-1108.17541326,0.0001764,2]
[398402359,1765615838809,-1082.29811394,0.0001764,2]
[398402360,1765615838818,-1028.25453192,0.0001764,2]
[398402361,1765615838827,-1101.2774315,0.0001764,2]
[398402363,1765615838837,-1056.73185101,0.0001764,2]
[398402365,1765615838846,-1011.34360211,0.0001764,2]
[398402367,1765615838856,-1092.67455295,0.0001764,2]
[398402369,1765615838866,-1055.54450258,0.0001764,2]
[398402371,1765615838875,-1066.85395289,0.0001764,2]
[398402373,1765615838885,-1066.09805015,0.0001764,2]
[398402375,1765615838894,-2547.45412976,0.0001764,2]
[398402377,1765615838903,-1284.6113653,0.0001764,2]
[398402379,1765615838913,-3295.84407791,0.00017652,2]
[398402381,1765615838922,-238.77494711,0.00017653,2]
[398402382,1765615838933,-150.80982889,0.00017671,2]
[398402383,1765615838942,-150.0,0.00017671,2]
[398402384,1765615838952,-150.0,0.00017671,2]
[398402385,1765615838962,-200.0,0.00017671,2]
[398402386,1765615838971,-150.0,0.00017671,2]
[398402387,1765615838982,-160.99670668,0.00017677,2]
[398402388,1765615838992,-3295.84407791,0.00017702,2]
[398402389,1765615839001,-238.77494711,0.00017702,2]
[398402390,1765615839011,-515.05,0.00017742,2]
[398402391,1765615839021,-3295.84407791,0.00017751,2]
[398402392,1765615839031,-238.77494711,0.00017752,2]
[398402393,1765615839041,-3295.84407791,0.00017801,2]
[398402394,1765615839050,-238.77494711,0.00017801,2]
[398402395,1765615839059,-200.0,0.00017808,2]
[398402396,1765615839069,-200.0,0.00017808,2]
[398402397,1765615839079,-200.0,0.00017808,2]
[398402398,1765615839088,-648.7,0.00017808,2]
[398402399,1765615839097,-1038.88883587,0.00017811,2]
[398402400,1765615839107,-3295.84407791,0.0001785,2]
[398402401,1765615839117,-238.77494711,0.00017851,2]
[398402402,1765615839126,-1592.1424,0.000179,2]
[398402403,1765615839135,-238.77494711,0.000179,2]
[398402404,1765615839145,-1000.0,0.000179,2]
[398402405,1765615839155,-3295.84407791,0.000179,2]
[398402406,1765615839165,-160.99670668,0.000179,2]
[398402407,1765615839175,-500.0,0.00017973,2]
[398402408,1765615839185,-500.0,0.00017973,2]
[398402409,1765615839196,-500.0,0.00017973,2]
[398402410,1765615839205,-566.62084446,0.00017973,2]
[398402411,1765615839215,-500.0,0.00017973,2]
[398402412,1765615839224,-500.0,0.00017973,2]
[398402413,1765615839234,-500.0,0.00017973,2]
[398402414,1765615839243,-330.25327919,0.00017973,2]
[398402415,1765615839253,-500.0,0.00017973,2]
[398402416,1765615839262,-500.0,0.00017973,2]
[398402417,1765615839272,-500.0,0.00017973,2]
[398402418,1765615839281,-500.0,0.00017973,2]
[398402419,1765615839291,-500.0,0.00017973,2]
[398402420,1765615839300,-500.0,0.00017973,2]
[398402421,1765615839321,-567.32208643,0.00017973,2]
[398402422,1765615839331,-500.0,0.00017973,2]
[398402423,1765615839341,-500.0,0.00017973,2]
[398402424,1765615839351,-500.0,0.00017973,2]
[398402425,1765615839361,-165.28083173,0.00017973,2]
[398402426,1765615839370,-500.0,0.00017973,2]
[398402427,1765615839383,-500.0,0.00017973,2]
[398402428,1765615839393,-500.0,0.00017973,2]
[398402429,1765615839402,-500.0,0.00017973,2]
[398402430,1765615839411,-500.0,0.00017973,2]
[398402431,1765615839421,-500.0,0.00017973,2]
[398402432,1765615839430,-500.0,0.00017973,2]
[398402433,1765615839440,-500.0,0.00017973,2]
[398402434,1765615839449,-500.0,0.00017973,2]
[398402435,1765615839459,-500.0,0.00017973,2]
[398402436,1765615839468,-500.0,0.00017973,2]
[398402437,1765615839479,-500.0,0.00017973,2]
[398402438,1765615839488,-500.0,0.00017973,2]
[398402439,1765615839498,-500.0,0.00017973,2]
[398402440,1765615839507,-2913.0,0.00017997,2]
[398402441,1765615839516,-12586.6086667,0.00017997,2]
[398402442,1765615839528,-2189.61702317,0.00017997,2]
[398402443,1765615839554,-960.8374124,0.00017997,2]
[398402444,1765615839565,-266.59758555,0.00017997,2]
[398402445,1765615839587,-3234.24970126,0.00017997,2]
[398402446,1765615839619,-1811.16,0.00017997,2]
[398402545,1765615841532,-267.95500047,0.00017997,2]
[398402548,1765615841543,-452.665,0.00017997,2]
[398402550,1765615841554,-611.623769,0.00017997,2]
[398402553,1765615841574,-475.70768933,0.00017997,2]
[398402615,1765615843202,-810.54369841,0.00017997,2]
[398402616,1765615843213,-534.74828065,0.00017997,2]
[398402617,1765615843243,-300.24817944,0.00017997,2]
[398402618,1765615843404,-150.958,0.00017195,2]
[398402619,1765615843418,-3288.21175584,0.00017997,2]
[398402620,1765615843483,-14974.65,0.00017997,2]
[398402626,1765615846426,-304.06693998,0.00016821,2]
[398402633,1765616146375,175.63,0.00013183,2]
[398402634,1765616739334,162.74,7.946e-05,2]
[398402635,1765616739530,162.74,9.536e-05,2]
[398402636,1765616739728,162.74,0.00011125,2]
[398402637,1765616739941,130.30792524,0.00012714,2]
[398402638,1765616739974,32.43207476,0.00012714,2]
[398402639,1765616740133,162.74,0.00014303,2]
[398402647,1765616904989,166.66,0.00014463,2]
[398402648,1765616905028,166.66,0.00014768,2]
[398402649,1765616905069,166.66,0.00015072,2]
[398402650,1765616905366,166.66,0.00015377,2]
[398402651,1765616945768,-516.83526139,0.000155,2]
[398402652,1765616948682,-281.2323833,0.000155,2]
[398402653,1765616951572,-155.58129497,0.000155,2]
[398402654,1765616953121,-349.51900884,0.000155,2]
[398402655,1765616957160,-216.59765971,0.000155,2]
[398402656,1765616958771,-174.58591822,0.000155,2]
[398402657,1765616962294,-461.12137404,0.000155,2]
[398402658,1765616963942,-237.59415219,0.000155,2]
[398402659,1765616968580,-163.75449751,0.000155,2]
[398402660,1765616969736,859.81,0.00015079,2]
[398402661,1765616970082,-160.4855862,0.000155,2]
[398402662,1765616973516,-266.73534782,0.000155,2]
[398402663,1765616978426,-449.54578886,0.000155,2]
[398402664,1765616980599,-152.37446444,0.000155,2]
[398402665,1765616983422,-291.76302965,0.000155,2]
[398402666,1765616985133,-347.10463053,0.000155,2]
[398402667,1765616990230,-159.51406417,0.000155,2]
[398402668,1765616993029,-236.16323085,0.000155,2]
[398402669,1765616994595,-744.97466669,0.000155,2]
[398402670,1765616996830,-361.8782281,0.000155,2]
[398402671,1765616998950,-154.91520239,0.000155,2]
[398402672,1765617000486,-198.67438707,0.000155,2]
[398402673,1765617002680,-277.05453468,0.00015499,2]
[398402674,1765617004807,-22.94546532,0.00015499,2]
[398402675,1765617004831,-161.52733542,0.00015499,2]
[398402676,1765617011261,-379.32662888,0.00015499,2]
[398402677,1765617012801,-207.21519527,0.00015499,2]
[398402678,1765617015370,-243.79913167,0.00015499,2]
[398402679,1765617019202,-208.13170876,0.00015499,2]
[398402680,1765617019226,-133.46007108,0.000155,2]
[398402681,1765617022486,-647.64361531,0.000155,2]
[398402682,1765617024620,-532.28,0.000155,2]
[398402683,1765617027433,-266.77262838,0.000155,2]
[398402684,1765617030945,-223.73662508,0.000155,2]
[398402690,1765617031303,-3139.55285068,0.000155,2]
[398402691,1765617031316,-630.75339574,0.000155,2]
[398402692,1765617031358,-688.72,0.000155,2]
[398402693,1765617031412,-583.63247807,0.000155,2]
[398402694,1765617031423,-5506.7214634,0.000155,2]
[398402695,1765617031441,-343.24244796,0.000155,2]
[398402696,1765617031467,-500.0,0.000155,2]
[398402697,1765617031478,-300.0,0.000155,2]
[398402698,1765617031521,-30422.53424736,0.000155,2]
[398402700,1765617031532,-166.66,0.00015681,2]
[398402701,1765617031542,-162.74,0.00015893,2]
[398402702,1765617031552,-152.58,0.00015893,2]
[398402703,1765617031562,-151.74,0.00015893,2]
[398402704,1765617031572,-152.87,0.00015893,2]
[398402706,1765617031581,-150.05,0.00015893,2]
[398402708,1765617031590,-150.03,0.00015895,2]
[398402710,1765617031600,-152.48,0.00015896,2]
[398402712,1765617031609,-151.53,0.00015896,2]
[398402714,1765617031619,-507.29733298,0.000159,2]
[398402715,1765617031628,-507.29733298,0.000159,2]
[398402716,1765617031637,-195.0,0.00015906,2]
[398402717,1765617031646,-152.87,0.00015907,2]
[398402718,1765617031656,-1878.5983,0.00015918,2]
[398402719,1765617031665,-300.0,0.00015919,2]
[398402720,1765617031676,-1000.0,0.0001592,2]
[398402721,1765617031687,-174.7258755,0.00015921,2]
[398402722,1765617031697,-626.97225453,0.00015935,2]
[398402723,1765617031706,-626.97225453,0.00015935,2]
[398402724,1765617031716,-626.97225453,0.00015935,2]
[398402725,1765617031726,-151.0,0.0001594,2]
[398402726,1765617031735,-151.0,0.00015942,2]
[398402727,1765617031745,-567.86669744,0.00015943,2]
[398402728,1765617031755,-500.0,0.00015943,2]
[398402729,1765617031764,-500.0,0.00015943,2]
[398402730,1765617031773,-500.0,0.00015943,2]
[398402731,1765617031783,-612.78330493,0.00015943,2]
[398402732,1765617031792,-500.0,0.00015943,2]
[398402733,1765617031802,-500.0,0.00015943,2]
[398402734,1765617031812,-502.06697146,0.00015943,2]
[398402735,1765617031823,-500.0,0.00015943,2]
[398402736,1765617031833,-500.0,0.00015943,2]
[398402737,1765617031844,-500.0,0.00015943,2]
[398402738,1765617031854,-500.0,0.00015943,2]
[398402739,1765617031865,-271.87338933,0.00015943,2]
[398402740,1765617031875,-500.0,0.00015943,2]
[398402741,1765617031886,-500.0,0.00015943,2]
[398402742,1765617031895,-500.0,0.00015943,2]
[398402743,1765617031907,-500.0,0.00015943,2]
[398402744,1765617031919,-500.0,0.00015943,2]
[398402745,1765617031929,-500.0,0.00015943,2]
[398402746,1765617031938,-326.08711315,0.00015943,2]
[398402747,1765617031947,-500.0,0.00015943,2]
[398402748,1765617031956,-500.0,0.00015943,2]
[398402749,1765617031966,-500.0,0.00015943,2]
[398402750,1765617031975,-182.47408486,0.00015943,2]
[398402751,1765617031985,-397.79855936,0.00015943,2]
[398402752,1765617031995,-500.0,0.00015943,2]
[398402753,1765617032004,-500.0,0.00015943,2]
[398402754,1765617032013,-500.0,0.00015943,2]
[398402755,1765617032023,-500.0,0.00015943,2]
[398402756,1765617032032,-500.0,0.00015943,2]
[398402757,1765617032042,-500.0,0.00015943,2]
[398402758,1765617032052,-500.0,0.00015943,2]
[398402759,1765617032062,-500.0,0.00015943,2]
[398402760,1765617032071,-500.0,0.00015943,2]
[398402761,1765617032082,-500.0,0.00015943,2]
[398402762,1765617032091,-500.0,0.00015943,2]
[398402763,1765617032101,-500.0,0.00015943,2]
[398402764,1765617032112,-500.0,0.00015943,2]
[398402765,1765617032123,-500.0,0.00015943,2]
[398402766,1765617032133,-500.0,0.00015943,2]
[398402767,1765617032438,-500.0,0.00015943,2]
[398402768,1765617032475,-500.0,0.00015943,2]
[398402769,1765617032486,-500.0,0.00015943,2]
[398402770,1765617032496,-500.0,0.00015943,2]
[398402771,1765617032505,-500.0,0.00015943,2]
[398402772,1765617032515,-500.0,0.00015943,2]
[398402773,1765617032525,-500.0,0.00015943,2]
[398402774,1765617032535,-500.0,0.00015943,2]
[398402775,1765617032544,-500.0,0.00015943,2]
[398402776,1765617032554,-500.0,0.00015943,2]
[398402777,1765617032563,-500.0,0.00015943,2]
[398402778,1765617032574,-500.0,0.00015943,2]
[398402779,1765617032583,-500.0,0.00015943,2]
[398402780,1765617032593,-500.0,0.00015943,2]
[398402781,1765617032602,-500.0,0.00015943,2]
[398402782,1765617032611,-500.0,0.00015943,2]
[398402783,1765617032620,-620.60509792,0.00015943,2]
[398402784,1765617032629,-500.0,0.00015943,2]
[398402785,1765617032638,-500.0,0.00015943,2]
[398402786,1765617032649,-500.0,0.00015943,2]
[398402787,1765617032658,-500.0,0.00015943,2]
[398402788,1765617032668,-500.0,0.00015943,2]
[398402789,1765617032678,-500.0,0.00015943,2]
[398402790,1765617032689,-500.0,0.00015943,2]
[398402791,1765617032699,-500.0,0.00015943,2]
[398402792,1765617032708,-500.0,0.00015943,2]
[398402793,1765617032718,-500.0,0.00015943,2]
[398402794,1765617032729,-500.0,0.00015943,2]
[398402795,1765617032740,-314.06616142,0.00015943,2]
[398402796,1765617032749,-500.0,0.00015943,2]
[398402797,1765617032759,-380.15052548,0.00015943,2]
[398402798,1765617032768,-500.0,0.00015943,2]
[398402799,1765617032777,-1409.70396561,0.00015943,2]
[398402800,1765617032787,-1409.70396561,0.00015943,2]
[398402801,1765617032796,-1409.70396561,0.00015943,2]
[398402802,1765617032807,-1409.70396561,0.00015943,2]
[398402803,1765617032816,-1409.70396561,0.00015943,2]
[398402804,1765617032827,-1409.70396561,0.00015943,2]
[398402805,1765617032836,-1409.70396561,0.00015943,2]
[398402806,1765617032845,-1409.70396561,0.00015943,2]
[398402807,1765617032855,-1409.70396561,0.00015943,2]
[398402808,1765617032864,-1409.70396561,0.00015943,2]
[398402809,1765617032873,-1409.70396561,0.00015943,2]
[398402810,1765617032883,-1409.70396561,0.00015943,2]
[398402811,1765617032893,-1409.70396561,0.00015943,2]
[398402812,1765617032903,-1409.70396561,0.00015943,2]
[398402813,1765617032918,-1409.70396561,0.00015943,2]
[398402814,1765617032927,-1409.70396561,0.00015943,2]
[398402815,1765617032937,-1409.70396561,0.00015943,2]
[398402816,1765617032946,-1409.70396561,0.00015943,2]
[398402817,1765617032956,-1409.70396561,0.00015943,2]
[398402818,1765617032966,-1409.70396561,0.00015943,2]
[398402819,1765617032975,-1409.70396561,0.00015943,2]
[398402820,1765617032985,-1409.70396561,0.00015943,2]
[398402821,1765617032995,-1409.70396561,0.00015943,2]
[398402822,1765617033004,-1409.70396561,0.00015943,2]
[398402823,1765617033014,-1409.70396561,0.00015943,2]
[398402824,1765617033023,-1409.70396561,0.00015943,2]
[398402825,1765617033034,-1409.70396561,0.00015943,2]
[398402826,1765617033044,-1409.70396561,0.00015943,2]
[398402827,1765617033053,-1409.70396561,0.00015943,2]
[398402828,1765617033062,-1409.70396561,0.00015943,2]
[398402829,1765617033072,-1409.70396561,0.00015943,2]
[398402830,1765617033082,-1409.70396561,0.00015943,2]
[398402831,1765617033091,-1409.70396561,0.00015943,2]
[398402832,1765617033101,-1409.70396561,0.00015943,2]
[398402833,1765617033110,-1409.70396561,0.00015943,2]
[398402834,1765617033120,-1409.70396561,0.00015943,2]
[398402835,1765617033129,-1314.07279819,0.00015943,2]
[398402836,1765617033139,-1314.07279819,0.00015943,2]
[398402837,1765617033148,-1314.07279819,0.00015943,2]
[398402838,1765617033157,-1314.07279818,0.00015943,2]
[398402839,1765617033166,-1081.61,0.00015945,2]
[398402840,1765617033175,-30177.65795033,0.00015945,2]
[398402841,1765617033189,-60059.88604273,0.00015945,2]
[398402842,1765617037386,-6122774.34600694,0.00015945,2]
[398402843,1765617037404,-16434.31964817,0.00015945,2]
[398402844,1765617037420,-11504.02375371,0.00015945,3]
[398402845,1765617037437,-3072.76921847,0.00015945,2]
[398402846,1765617037453,-2150.93845294,0.00015945,3]
[398402847,1765617037469,-166.66,0.00015986,2]
[398402848,1765617037485,-481.04173315,0.00016,3]
[398402849,1765617037500,-381.2,0.00016021,2]
[398402850,1765617037516,-217.0,0.00016137,2]
[398402851,1765617037532,-215.0,0.00016137,2]
[398402852,1765617037546,-150.0,0.000162,2]
[398402853,1765617037562,-150.0,0.000162,2]
[398402854,1765617037577,-159.50716856,0.000162,2]
[398402855,1765617037593,-157.43451246,0.000162,2]
[398402856,1765617037608,-150.0,0.000162,2]
[398402857,1765617037624,-165.51213001,0.000162,2]
[398402858,1765617037639,-153.15599333,0.000162,2]
[398402859,1765617037654,-243.35649499,0.000162,2]
[398402860,1765617037669,-931.0,0.00016201,2]
[398402861,1765617037684,-15118.8,0.00016213,2]
[398402863,1765617037700,-475.0,0.00016234,2]
[398402865,1765617037715,-519.0,0.00016393,2]
[398402867,1765617037729,-606.0,0.00016425,2]
[398402869,1765617037751,-151.0,0.00016435,2]
[398402873,1765617037776,-656.31446729,0.00016438,2]
[398402876,1765617037803,-656.31446729,0.00016438,2]
[398402877,1765617037824,-656.31446729,0.00016438,2]
[398402878,1765617037841,-656.31446729,0.00016438,2]
[398402879,1765617037859,-656.31446729,0.00016438,2]
[398402880,1765617037878,-656.31446729,0.00016438,2]
[398402881,1765617037896,-656.31446729,0.00016438,2]
[398402882,1765617037914,-656.31446729,0.00016438,2]
[398402883,1765617037931,-656.31446729,0.00016438,2]
[398402884,1765617037947,-656.31446729,0.00016438,2]
[398402885,1765617037964,-656.31446729,0.00016438,2]
[398402886,1765617037983,-656.31446729,0.00016438,2]
[398402887,1765617037999,-656.31446729,0.00016438,2]
[398402888,1765617038016,-656.31446729,0.00016438,2]
[398402889,1765617038032,-656.31446729,0.00016438,2]
[398402890,1765617038049,-656.31446729,0.00016438,2]
[398402891,1765617038065,-656.31446729,0.00016438,2]
[398402892,1765617038080,-656.31446729,0.00016438,2]
[398402893,1765617038097,-656.31446729,0.00016438,2]
[398402894,1765617038112,-656.31446729,0.00016438,2]
[398402895,1765617038133,-656.31446729,0.00016438,2]
[398402896,1765617038149,-656.31446729,0.00016438,2]
[398402897,1765617038165,-656.31446729,0.00016438,2]
[398402898,1765617038182,-656.31446729,0.00016438,2]
[398402899,1765617038199,-656.31446729,0.00016438,2]
[398402900,1765617038215,-656.31446729,0.00016438,2]
[398402901,1765617038231,-656.31446729,0.00016438,2]
[398402902,1765617038255,-656.31446729,0.00016438,2]
[398402903,1765617038281,-656.31446729,0.00016438,2]
[398402904,1765617038304,-656.31446729,0.00016438,2]
[398402905,1765617038325,-656.31446729,0.00016438,2]
[398402906,1765617038345,-656.31446729,0.00016438,2]
[398402907,1765617038365,-656.31446729,0.00016438,2]
[398402908,1765617038386,-656.31446729,0.00016438,2]
[398402909,1765617038404,-656.31446729,0.00016438,2]
[398402910,1765617038422,-656.31446729,0.00016438,2]
[398402911,1765617038440,-656.31446729,0.00016438,2]
[398402912,1765617038459,-656.31446729,0.00016438,2]
[398402913,1765617038478,-656.31446729,0.00016438,2]
[398402914,1765617038496,-656.31446729,0.00016438,2]
[398402915,1765617038512,-656.31446729,0.00016438,2]
[398402916,1765617038528,-656.31446729,0.00016438,2]
[398402917,1765617038544,-656.31446729,0.00016438,2]
[398402918,1765617038566,-656.31446729,0.00016438,2]
[398402919,1765617038587,-656.31446729,0.00016438,2]
[398402920,1765617038607,-656.31446729,0.00016438,2]
[398402921,1765617038628,-656.31446729,0.00016438,2]
[398402922,1765617038648,-656.31446729,0.00016438,2]
[398402923,1765617038668,-656.31446729,0.00016438,2]
[398402924,1765617038686,-656.31446729,0.00016438,2]
[398402925,1765617038704,-656.31446729,0.00016438,2]
[398402926,1765617038723,-656.31446729,0.00016438,2]
[398402927,1765617038747,-656.31446729,0.00016438,2]
[398402928,1765617038767,-656.31446729,0.00016438,2]
[398402929,1765617038787,-656.31446729,0.00016438,2]
[398402930,1765617038806,-656.31446729,0.00016438,2]
[398402931,1765617038827,-656.31446729,0.00016438,2]
[398402932,1765617038846,-656.31446729,0.00016438,2]
[398402933,1765617038865,-656.31446729,0.00016438,2]
[398402934,1765617038883,-656.31446729,0.00016438,2]
[398402935,1765617038901,-656.31446729,0.00016438,2]
[398402936,1765617038925,-656.31446729,0.00016438,2]
[398402937,1765617038942,-656.31446729,0.00016438,2]
[398402938,1765617038959,-656.31446729,0.00016438,2]
[398402939,1765617038977,-656.31446729,0.00016438,2]
[398402940,1765617038995,-656.31446729,0.00016438,2]
[398402941,1765617039013,-656.31446729,0.00016438,2]
[398402942,1765617039030,-656.31446729,0.00016438,2]
[398402943,1765617039047,-6080.26706092,0.00016438,2]
[398402944,1765617039065,-6080.26706092,0.00016438,2]
[398402945,1765617039082,-6080.26706092,0.00016438,2]
[398402946,1765617039104,-6080.26706092,0.00016438,2]
[398402947,1765617039120,-6080.26706092,0.00016438,2]
[398402948,1765617039136,-6080.26706092,0.00016438,2]
[398402949,1765617039151,-6080.26706092,0.00016438,2]
[398402950,1765617039164,-6080.26706092,0.00016438,2]
[398402951,1765617039177,-6080.26706092,0.00016438,2]
[398402952,1765617039191,-6080.26706092,0.00016438,2]
[398402953,1765617039205,-6080.26706092,0.00016438,2]
[398402954,1765617039221,-6080.26706092,0.00016438,2]
[398402955,1765617039236,-6080.26706092,0.00016438,2]
[398402956,1765617039250,-6080.26706092,0.00016438,2]
[398402957,1765617039266,-6080.26706092,0.00016438,2]
[398402958,1765617039282,-6080.26706092,0.00016438,2]
[398402959,1765617039299,-6080.26706092,0.00016438,2]
[398402960,1765617039314,-6080.26706092,0.00016438,2]
[398402962,1765617039330,-6080.26706092,0.00016438,2]
[398402963,1765617039345,-6080.26706092,0.00016438,2]
[398402964,1765617039359,-500.0,0.00016438,2]
[398402966,1765617039375,-500.0,0.00016438,2]
[398402967,1765617039390,-500.0,0.00016438,2]
[398402968,1765617039405,-500.0,0.00016438,2]
[398402969,1765617039429,-500.0,0.00016438,2]
[398402970,1765617039454,-500.0,0.00016438,2]
[398402971,1765617039475,-500.0,0.00016438,2]
[398402972,1765617039493,-500.0,0.00016438,2]
[398402973,1765617039511,-500.0,0.00016438,2]
[398402974,1765617039529,-500.0,0.00016438,2]
[398402975,1765617039546,-500.0,0.00016438,2]
[398402976,1765617039563,-500.0,0.00016438,2]
[398402977,1765617039581,-613.16,0.00016438,2]
[398402978,1765617039599,-258.51,0.00016448,2]
[398402979,1765617039614,-1621.0,0.00016464,2]
[398402980,1765617039626,-414.0,0.00016464,2]
[398402981,1765617039636,-1380.0,0.00016497,2]
[398402982,1765617039646,-423.0,0.00016497,2]
[398402983,1765617039656,-300.0,0.00016503,2]
[398402984,1765617039666,-499.0,0.00016503,2]
[398402985,1765617039676,-658.0,0.0001653,2]
[398402986,1765617039685,-499.0,0.00016558,2]
[398402987,1765617039695,-499.0,0.00016613,2]
[398402988,1765617039704,-333.0,0.00016615,2]
[398403001,1765617040301,-1422.0,0.00016661,2]
[398403002,1765617040360,-499.0,0.00016668,2]
[398403003,1765617040395,-1057.0,0.00016695,2]
[398403004,1765617040406,-168.44,0.00016712,2]
[398403005,1765617040415,-151.0,0.00016718,2]
[398403006,1765617040425,-3338.7952,0.00016721,2]
[398403007,1765617040434,-281.3609,0.00016721,2]
[398403008,1765617040443,-78822.2803,0.00016721,2]
[398403009,1765617040452,-2500.0,0.00016721,2]
[398403010,1765617040463,-235.6966,0.00016721,2]
[398403011,1765617040472,-1000.0,0.00016721,2]
[398403012,1765617040482,-760000.0,0.00016721,2]
[398403013,1765617040491,-499.0,0.00016723,2]
[398403014,1765617040500,-499.0,0.00016778,2]
[398403015,1765617040509,-7730.56,0.00016796,2]
[398403016,1765617040518,-200.0,0.00016811,2]
[398403017,1765617040527,-1000.0,0.00016811,2]
[398403018,1765617040537,-1000.0,0.00016811,2]
[398403019,1765617040546,-1000.0,0.00016811,2]
[398403020,1765617040556,-1000.0,0.00016811,2]
[398403021,1765617040564,-1000.0,0.00016811,2]
[398403022,1765617040574,-500.0,0.00016811,2]
[398403023,1765617040583,-574.12855637,0.00016811,2]
[398403024,1765617040592,-151.0,0.00016811,2]
[398403025,1765617040601,-151.0,0.00016811,2]
[398403026,1765617040610,-151.0,0.00016811,2]
[398403027,1765617040619,-151.0,0.00016811,2]